{"text_format":"1","workbook":"xlsx","n_sheets":16,"sheets":["土工(1,000m3以上)","土工(1,000m3未満)","小規模土工","舗装工","河川浚渫工","法面工","作業土工（床掘）","付帯構造物設置工","地盤改良工","舗装工（修繕工）","構造物工（橋梁上部）","構造物工（橋脚・橋台）","擁壁工","基礎工","港湾浚渫工 ","通知用様式_受注者希望型 "],"not_rendered":{"charts":0,"images":0,"macros":0,"external_links":0,"defined_names":7,"comments":16,"pivot_tables":0},"unopened":[],"bounds":{"document_bytes":16777216,"sheet_cells":100000,"rows_first":2000,"rows_last":500,"rows_between":2000,"halvings":0,"cell_chars":16384,"cell_head_chars":4096},"cells_cut":0,"cells_raw":0,"read":"whole","date_system":"1900"}

{"sheet":"土工(1,000m3以上)","index":0,"n_rows":23,"n_cols":10,"rows_kept":23,"cut":false,"hidden":false,"merged":[[18,1,19,1],[18,2,19,3],[19,4,19,7],[20,2,20,3],[20,4,20,7],[26,0,26,7],[22,0,22,7],[24,0,24,7],[25,0,25,7],[23,0,23,7],[4,6,4,7],[9,1,9,7],[13,1,17,1],[13,9,17,9],[6,0,8,7],[10,2,10,3],[10,4,10,7],[11,0,20,0],[11,2,11,3],[11,4,11,7],[12,2,12,3],[12,4,12,7],[13,2,17,2],[13,3,17,3],[13,4,17,7],[18,4,18,7]]}
[]
[]
["ＩＣＴ活用工事計画書【土工　※土工量1,000m3以上】"]
[]
[null,null,null,null,null,"会社名："]
[]
["　当該工事の土工において、ＩＣＴ施工技術を次の施工プロセスの段階で活用します（□チェック欄に☑と記入しているものが該当）。"]
[]
[]
["工事名"]
["ICT活用工事の判定","チェック欄","施工プロセスの段階",null,"適用技術・機種"]
[{"$f":"IF(J22=5,\"ICT活用工事\",IF(J22<3,\"通常工事\",\"簡易型ICT活用工事\"))","v":"ICT活用工事"},null,"①３次元起工測量",null,"・空中写真測量（無人航空機）を用いた起工測量\n・地上型レーザースキャナーを用いた起工測量\n・無人航空機搭載型レーザースキャナーを用いた起工測量\n・地上移動体搭載型レーザースキャナーを用いた起工測量\n・TS等光波方式を用いた起工測量\n・TS（ノンプリズム方式）を用いた起工測量\n・ＲＴＫ－ＧＮＳＳを用いた起工測量\n・その他の３次元計測技術を用いた起工測量\n\n※採用する具体の技術等は別途協議により決定する。\n※複数以上の技術を組み合わせて採用してもよい。",null,null,null,null,true]
[null,"必須","②３次元設計データ作成",null,"※３次元出来形管理に用いる３次元設計データの作成を実施しなければならない。",null,null,null,null,true]
[null,null,"③ＩＣＴ建設機械による施工","【工種】\n・掘削工\n・盛土工\n・路体盛土工\n・路床盛土工\n・法面整形工","・３次元マシンコントロール建設機械\n・３次元マシンガイダンス建設機械\n\n※採用する機種及び活用工種・施工範囲等については、別途協議により決定する。\n※当該工事に含まれる左記作業のいずれかでＩＣＴ建設機械を活用すればよい。",null,null,null,null,true]
[]
[]
[]
[]
[null,"必須","④３次元出来形管理等の施工管理",null,"・空中写真測量（無人航空機）を用いた出来形管理\n・地上型レーザースキャナーを用いた出来形管理\n・無人航空機搭載型レーザースキャナーを用いた出来形管理\n・地上移動体搭載型レーザースキャナーを用いた出来形管理\n・TS等光波方式を用いた出来形管理\n・TS（ノンプリズム方式）を用いた出来形管理\n・ＲＴＫ－ＧＮＳＳを用いた出来形管理\n・施工履歴データを用いた出来形管理\n・地上写真測量を用いた出来形管理\n・その他の３次元計測技術を用いた出来形管理\n\n※採用する具体の技術等は別途協議により決定する。\n※複数以上の技術を組み合わせて採用しても良い。\n※「①３次元起工測量」で採用した技術と相違しても良い。",null,null,null,null,true]
[null,null,null,null,"・ＴＳ・ＧＮＳＳによる締固め回数管理\n\n※盛土の締固作業が工事内容に含まれない場合は、本技術は本表の対象外とする。\n※現場条件等から、ＴＳ・ＧＮＳＳによる締固め回数管理技術の実施が適さないと判断される場合は、従来手法（砂置換法、ＲＩ等）で管理することを認める。"]
[null,"必須","⑤３次元データの納品",null,null,null,null,null,null,true]
[null,null,null,null,null,null,null,null,null,{"$f":"COUNTIF(J12:J21,TRUE)","v":5}]
["注) ＩＣＴ活用工事の詳細については、ＩＣＴ活用工事実施要領及びＩＣＴ活用工事共通仕様書によるものとする。"]

{"sheet":"土工(1,000m3未満)","index":1,"n_rows":23,"n_cols":10,"rows_kept":23,"cut":false,"hidden":false,"merged":[[13,1,17,1],[13,2,17,2],[13,3,17,3],[13,4,17,7],[4,6,4,7],[6,0,8,7],[9,1,9,7],[10,2,10,3],[10,4,10,7],[13,9,17,9],[26,0,26,7],[20,2,20,3],[20,4,20,7],[22,0,22,7],[23,0,23,7],[24,0,24,7],[25,0,25,7],[18,1,19,1],[18,2,19,3],[11,0,20,0],[11,2,11,3],[18,4,19,7],[11,4,11,7],[12,2,12,3],[12,4,12,7]]}
[]
[]
["ＩＣＴ活用工事計画書【土工（1、000m3未満）】"]
[]
[null,null,null,null,null,"会社名："]
[]
["　当該工事の土工において、ＩＣＴ施工技術を次の施工プロセスの段階で活用します（□チェック欄に☑と記入しているものが該当）。"]
[]
[]
["工事名"]
["ICT活用工事の判定","チェック欄","施工プロセスの段階",null,"適用技術・機種"]
[{"$f":"IF(J22=5,\"ICT活用工事\",IF(J22<3,\"通常工事\",\"簡易型ICT活用工事\"))","v":"ICT活用工事"},null,"①３次元起工測量",null,"従来手法（管理断面及び変化点の計測）による起工測量を原則とする。\n\n・空中写真測量（無人航空機）を用いた起工測量\n・地上型レーザースキャナーを用いた起工測量\n・無人航空機搭載型レーザースキャナーを用いた起工測量\n・地上移動体搭載型レーザースキャナーを用いた起工測量\n・TS等光波方式を用いた起工測量\n・TS（ノンプリズム方式）を用いた起工測量\n・ＲＴＫ－ＧＮＳＳを用いた起工測量\n・その他の３次元計測技術を用いた起工測量\n\n※採用する具体の技術等は別途協議により決定する。\n※複数以上の技術を組み合わせて採用してもよい。",null,null,null,null,true]
[null,"必須","②３次元設計データ作成",null,"※３次元出来形管理に用いる３次元設計データの作成を実施しなければならない。",null,null,null,null,true]
[null,null,"③ＩＣＴ建設機械による施工","【工種】\n・掘削工\n・盛土工\n・路体盛土工\n・路床盛土工\n・法面整形工","・３次元マシンガイダン建設機械\n\n※採用する機種及び活用工種・施工範囲等については、別途協議により決定する。\n※当該工事に含まれる左記作業のいずれかでＩＣＴ建設機械を活用すればよい。",null,null,null,null,true]
[]
[]
[]
[]
[null,"必須","④３次元出来形管理等の施工管理",null,"・モバイル端末を用いた出来形管理\n・空中写真測量（無人航空機）を用いた出来形管理\n・地上型レーザースキャナーを用いた出来形管理\n・無人航空機搭載型レーザースキャナーを用いた出来形管理\n・地上移動体搭載型レーザースキャナーを用いた出来形管理\n・TS等光波方式を用いた出来形管理\n・TS（ノンプリズム方式）を用いた出来形管理\n・ＲＴＫ－ＧＮＳＳを用いた出来形管理\n・施工履歴データを用いた出来形管理\n・地上写真測量を用いた出来形管理\n・その他の３次元計測技術を用いた出来形管理\n\n※採用する具体の技術等は別途協議により決定する。\n※複数以上の技術を組み合わせて採用しても良い。\n※「①３次元起工測量」で採用した技術と相違しても良い。",null,null,null,null,true]
[]
[null,"必須","⑤３次元データの納品",null,null,null,null,null,null,true]
[null,null,null,null,null,null,null,null,null,{"$f":"COUNTIF(J12:J21,TRUE)","v":5}]
["注) ＩＣＴ活用工事の詳細については、ＩＣＴ活用工事実施要領及びＩＣＴ活用工事共通仕様書によるものとする。"]

{"sheet":"小規模土工","index":2,"n_rows":23,"n_cols":10,"rows_kept":23,"cut":false,"hidden":false,"merged":[[13,2,17,2],[13,3,17,3],[13,4,17,7],[13,9,17,9],[4,6,4,7],[6,0,8,7],[9,1,9,7],[10,2,10,3],[10,4,10,7],[26,0,26,7],[18,4,19,7],[20,2,20,3],[20,4,20,7],[22,0,22,7],[23,0,23,7],[24,0,24,7],[25,0,25,7],[18,1,19,1],[18,2,19,3],[11,0,20,0],[11,2,11,3],[11,4,11,7],[12,2,12,3],[12,4,12,7],[13,1,17,1]]}
[]
[]
["ＩＣＴ活用工事計画書【小規模土工】"]
[]
[null,null,null,null,null,"会社名："]
[]
["　当該工事の土工において，ＩＣＴ施工技術を次の施工プロセスの段階で活用します（□チェック欄に☑と記入しているものが該当）。"]
[]
[]
["工事名"]
["ICT活用工事の判定","チェック欄","施工プロセスの段階",null,"適用技術・機種"]
[{"$f":"IF(J22=4,\"ICT活用工事\",IF(J22<3,\"通常工事\",\"簡易型ICT活用工事\"))","v":"ICT活用工事"},null,"①３次元起工測量",null,"従来手法（管理断面及び変化点の計測）による起工測量を原則とする。\n\n・空中写真測量（無人航空機）を用いた起工測量\n・地上型レーザースキャナーを用いた起工測量\n・無人航空機搭載型レーザースキャナーを用いた起工測量\n・地上移動体搭載型レーザースキャナーを用いた起工測量\n・TS等光波方式を用いた起工測量\n・TS（ノンプリズム方式）を用いた起工測量\n・ＲＴＫ－ＧＮＳＳを用いた起工測量\n・その他の３次元計測技術を用いた起工測量\n\n※採用する具体の技術等は別途協議により決定する。\n※複数以上の技術を組み合わせて採用してもよい。",null,null,null,null,true]
[null,"必須","②３次元設計データ作成",null,"※３次元出来形管理に用いる３次元設計データの作成を実施しなければならない。",null,null,null,null,true]
[null,"必須","③ＩＣＴ建設機械による施工","【工種】\n・掘削工\n","・３次元マシンガイダン建設機械\n\n※採用する機種及び活用工種・施工範囲等については、別途協議により決定する。\n※当該工事に含まれる左記作業のいずれかでＩＣＴ建設機械を活用すればよい。",null,null,null,null,true]
[]
[]
[]
[]
[null,"該当なし"]
[]
[null,"必須","⑤３次元データの納品",null,null,null,null,null,null,true]
[null,null,null,null,null,null,null,null,null,{"$f":"COUNTIF(J12:J21,TRUE)","v":4}]
["注) ＩＣＴ活用工事の詳細については，ＩＣＴ活用工事実施要領及びＩＣＴ活用工事共通仕様書によるものとする。"]

{"sheet":"舗装工","index":3,"n_rows":22,"n_cols":10,"rows_kept":22,"cut":false,"hidden":false,"merged":[[13,9,17,9],[25,0,25,7],[19,2,19,3],[19,4,19,7],[21,0,21,7],[22,0,22,7],[23,0,23,7],[24,0,24,7],[18,2,18,3],[18,4,18,7],[11,0,19,0],[11,2,11,3],[11,4,11,7],[12,2,12,3],[12,4,12,7],[13,1,17,1],[13,2,17,2],[13,3,17,3],[13,4,17,7],[4,6,4,7],[6,0,8,7],[9,1,9,7],[10,2,10,3],[10,4,10,7]]}
[]
[]
["ＩＣＴ活用工事計画書【舗装工】"]
[]
[null,null,null,null,null,"会社名："]
[]
["　当該工事の舗装工において、ＩＣＴ施工技術を次の施工プロセスの段階で活用します（□チェック欄に☑と記入しているものが該当）。"]
[]
[]
["工事名"]
["ICT活用工事の判定","チェック欄","施工プロセスの段階",null,"適用技術・機種"]
[{"$f":"IF(J21=5,\"ICT活用工事\",IF(J21<3,\"通常工事\",\"簡易型ICT活用工事\"))","v":"ICT活用工事"},null,"①３次元起工測量",null,"・地上型レーザースキャナーを用いた起工測量\n・地上移動体搭載型レーザースキャナーを用いた起工測量\n・TS等光波方式を用いた起工測量\n・TS（ノンプリズム方式）を用いた起工測量\n・その他の３次元計測技術を用いた起工測量\n\n※採用する具体の技術等は別途協議により決定する。\n※複数以上の技術を組み合わせて採用してもよい。",null,null,null,null,true]
[null,"必須","②３次元設計データ作成",null,"※３次元出来形管理に用いる３次元設計データの作成を実施しなければならない。",null,null,null,null,true]
[null,null,"③ＩＣＴ建設機械による施工","【工種】\n・路盤工","・３次元マシンコントロール建設機械\n\n※採用する機種及び活用工種・施工範囲等については、別途協議により決定する。",null,null,null,null,true]
[]
[]
[]
[]
[null,"必須","④３次元出来形管理等の施工管理",null,"・地上型レーザースキャナーを用いた出来形管理\n・地上移動体搭載型レーザースキャナーを用いた出来形管理\n・TS等光波方式を用いた出来形管理\n・TS（ノンプリズム方式）を用いた出来形管理\n・その他の３次元計測技術による出来形管理\n\n※採用する具体の技術等は別途協議により決定する。\n※複数以上の技術を組み合わせて採用しても良い。\n※「①３次元起工測量」で採用した技術と相違しても良い。",null,null,null,null,true]
[null,"必須","⑤３次元データの納品",null,null,null,null,null,null,true]
[null,null,null,null,null,null,null,null,null,{"$f":"COUNTIF(J12:J20,TRUE)","v":5}]
["注) ＩＣＴ活用工事の詳細については、ＩＣＴ活用工事実施要領及びＩＣＴ活用工事共通仕様書によるものとする。"]

{"sheet":"河川浚渫工","index":4,"n_rows":22,"n_cols":10,"rows_kept":22,"cut":false,"hidden":false,"merged":[[13,9,17,9],[25,0,25,7],[19,2,19,3],[19,4,19,7],[21,0,21,7],[22,0,22,7],[23,0,23,7],[24,0,24,7],[18,2,18,3],[18,4,18,7],[11,0,19,0],[11,2,11,3],[11,4,11,7],[12,2,12,3],[12,4,12,7],[13,1,17,1],[13,2,17,2],[13,3,17,3],[13,4,17,7],[4,6,4,7],[6,0,8,7],[9,1,9,7],[10,2,10,3],[10,4,10,7]]}
[]
[]
["ＩＣＴ活用工事計画書【河川浚渫工（バックホウ浚渫船）】"]
[]
[null,null,null,null,null,"会社名："]
[]
["　当該工事の浚渫工において、ＩＣＴ施工技術を次の施工プロセスの段階で活用します（□チェック欄に☑と記入しているものが該当）。"]
[]
[]
["工事名"]
["ICT活用工事の判定","チェック欄","施工プロセスの段階",null,"適用技術・機種"]
[{"$f":"IF(J21=5,\"ICT活用工事\",IF(J21<3,\"通常工事\",\"簡易型ICT活用工事\"))","v":"ICT活用工事"},null,"①３次元起工測量",null,"・音響測深機を用いた起工測量\n・その他の３次元計測技術を用いた起工測量\n\n※採用する具体の技術等は別途協議により決定する。\n※複数以上の技術を組み合わせて採用してもよい。",null,null,null,null,true]
[null,"必須","②３次元設計データ作成",null,"※３次元出来形管理に用いる３次元設計データの作成を実施しなければならない。",null,null,null,null,true]
[null,null,"③ＩＣＴ建設機械による施工","【工種】\n・浚渫工（バック\nホウ浚渫船）","・３次元マシンコントロール建設機械\n・３次元マシンガイダンス建設機械\n\n※採用する機種及び活用工種・施工範囲等については、別途協議により決定する。",null,null,null,null,true]
[]
[]
[]
[]
[null,"必須","④３次元出来形管理等の施工管理",null,"・音響測深機を用いた出来形管理\n・施工履歴データを用いた出来形管理\n・その他の３次元計測技術を用いた出来形管理\n\n※採用する具体の技術等は別途協議により決定する。\n※複数以上の技術を組み合わせて採用しても良い。\n※「①３次元起工測量」で採用した技術と相違しても良い。",null,null,null,null,true]
[null,"必須","⑤３次元データの納品",null,null,null,null,null,null,true]
[null,null,null,null,null,null,null,null,null,{"$f":"COUNTIF(J12:J20,TRUE)","v":5}]
["注) ＩＣＴ活用工事の詳細については、ＩＣＴ活用工事実施要領及びＩＣＴ活用工事共通仕様書によるものとする。"]

{"sheet":"法面工","index":5,"n_rows":22,"n_cols":10,"rows_kept":22,"cut":false,"hidden":false,"merged":[[25,0,25,7],[19,2,19,3],[19,4,19,7],[21,0,21,7],[22,0,22,7],[23,0,23,7],[24,0,24,7],[11,0,19,0],[11,2,11,3],[11,4,11,7],[12,2,12,3],[12,4,12,7],[13,1,17,1],[13,2,17,3],[13,4,17,7],[13,9,17,9],[18,2,18,3],[18,4,18,7],[4,6,4,7],[6,0,8,7],[9,1,9,7],[10,2,10,3],[10,4,10,7]]}
[]
[]
["ＩＣＴ活用工事計画書【法面工】"]
[]
[null,null,null,null,null,"会社名："]
[]
["　当該工事の法面工において、ＩＣＴ施工技術を次の施工プロセスの段階で活用します（□チェック欄に☑と記入しているものが該当）。"]
[]
[]
["工事名"]
["ICT活用工事の判定","チェック欄","施工プロセスの段階",null,"適用技術・機種"]
[{"$f":"IF(J21=4,\"ICT活用工事\",IF(J21<3,\"通常工事\",\"簡易型ICT活用工事\"))","v":"ICT活用工事"},null,"①３次元起工測量",null,"・空中写真測量（無人航空機）を用いた起工測量\n・地上型レーザースキャナーを用いた起工測量\n・無人航空機搭載型レーザースキャナーを用いた起工測量\n・地上移動体搭載型レーザースキャナーを用いた起工測量\n・TS等光波方式を用いた起工測量\n・TS（ノンプリズム方式）を用いた起工測量\n・ＲＴＫ－ＧＮＳＳを用いた起工測量\n・その他の３次元計測技術を用いた起工測量\n\n※採用する具体の技術等は別途協議により決定する。\n※複数以上の技術を組み合わせて採用してもよい。",null,null,null,null,true]
[null,"該当なし",null,null,null,null,null,null,null,true]
[null,"該当なし"]
[]
[]
[]
[]
[null,"必須","④３次元出来形管理等の施工管理",null,"・空中写真測量（無人航空機）を用いた出来形管理\n・地上型レーザースキャナーを用いた出来形管理\n・無人航空機搭載型レーザースキャナーを用いた出来形管理\n・地上移動体搭載型レーザースキャナーを用いた出来形管理\n・TS等光波方式を用いた出来形管理\n・TS（ノンプリズム方式）を用いた出来形管理\n・ＲＴＫ－ＧＮＳＳを用いた出来形管理\n・その他の３次元計測技術を用いた出来形管理\n\n※採用する具体の技術等は別途協議により決定する。\n※複数以上の技術を組み合わせて採用しても良い。\n※「①３次元起工測量」で採用した技術と相違しても良い。",null,null,null,null,true]
[null,"必須","⑤３次元データの納品",null,null,null,null,null,null,true]
[null,null,null,null,null,null,null,null,null,{"$f":"COUNTIF(J12:J20,TRUE)","v":4}]
["注) ＩＣＴ活用工事の詳細については、ＩＣＴ活用工事実施要領及びＩＣＴ活用工事共通仕様書によるものとする。"]

{"sheet":"作業土工（床掘）","index":6,"n_rows":23,"n_cols":10,"rows_kept":23,"cut":false,"hidden":false,"merged":[[13,1,17,1],[13,2,17,2],[13,3,17,3],[4,6,4,7],[6,0,8,7],[9,1,9,7],[10,2,10,3],[10,4,10,7],[13,4,17,7],[13,9,17,9],[26,0,26,7],[20,2,20,3],[20,4,20,7],[22,0,22,7],[23,0,23,7],[24,0,24,7],[25,0,25,7],[18,1,19,1],[18,2,19,3],[18,4,19,7],[11,0,20,0],[11,2,11,3],[11,4,11,7],[12,2,12,3],[12,4,12,7]]}
[]
[]
["ＩＣＴ活用工事計画書【作業土工（床掘）】"]
[]
[null,null,null,null,null,"会社名："]
[]
["　当該工事の土工において，ＩＣＴ施工技術を次の施工プロセスの段階で活用します（□チェック欄に☑と記入しているものが該当）。"]
[]
[]
["工事名"]
["ICT活用工事の判定","チェック欄","施工プロセスの段階",null,"適用技術・機種"]
[{"$f":"IF(J22=4,\"ICT活用工事\",IF(J22<3,\"通常工事\",\"簡易型ICT活用工事\"))","v":"ICT活用工事"},null,"①３次元起工測量",null,"\n\n・空中写真測量（無人航空機）を用いた起工測量\n・地上型レーザースキャナーを用いた起工測量\n・無人航空機搭載型レーザースキャナーを用いた起工測量\n・地上移動体搭載型レーザースキャナーを用いた起工測量\n・TS等光波方式を用いた起工測量\n・TS（ノンプリズム方式）を用いた起工測量\n・ＲＴＫ－ＧＮＳＳを用いた起工測量\n・その他の３次元計測技術を用いた起工測量\n\n※採用する具体の技術等は別途協議により決定する。\n※複数以上の技術を組み合わせて採用してもよい。",null,null,null,null,true]
[null,"必須","②３次元設計データ作成",null,"※３次元出来形管理に用いる３次元設計データの作成を実施しなければならない。",null,null,null,null,true]
[null,"必須","③ＩＣＴ建設機械による施工","【工種】\n・掘削工\n","・３次元マシンコントロール建設機械\n・３次元マシンガイダンス建設機械\n\n※採用する機種及び活用工種・施工範囲等については、別途協議により決定する。\n※当該工事に含まれる左記作業のいずれかでＩＣＴ建設機械を活用すればよい。",null,null,null,null,true]
[]
[]
[]
[]
[null,"該当なし"]
[]
[null,"必須","⑤３次元データの納品",null,null,null,null,null,null,true]
[null,null,null,null,null,null,null,null,null,{"$f":"COUNTIF(J12:J21,TRUE)","v":4}]
["注) ＩＣＴ活用工事の詳細については，ＩＣＴ活用工事実施要領及びＩＣＴ活用工事共通仕様書によるものとする。"]

{"sheet":"付帯構造物設置工","index":7,"n_rows":22,"n_cols":10,"rows_kept":22,"cut":false,"hidden":false,"merged":[[13,9,17,9],[18,2,18,3],[18,4,18,7],[4,6,4,7],[6,0,8,7],[9,1,9,7],[10,2,10,3],[10,4,10,7],[25,0,25,7],[19,2,19,3],[19,4,19,7],[21,0,21,7],[22,0,22,7],[23,0,23,7],[24,0,24,7],[11,0,19,0],[11,2,11,3],[11,4,11,7],[12,2,12,3],[12,4,12,7],[13,1,17,1],[13,2,17,3],[13,4,17,7]]}
[]
[]
["ＩＣＴ活用工事計画書【付帯構造物設置工】"]
[]
[null,null,null,null,null,"会社名："]
[]
["　当該工事の基礎工において，ＩＣＴ施工技術を次の施工プロセスの段階で活用します（□チェック欄に☑と記入しているものが該当）。"]
[]
[]
["工事名"]
["ICT活用工事の判定","チェック欄","施工プロセスの段階",null,"適用技術・機種"]
[{"$f":"IF(J21=4,\"ICT活用工事\",IF(J21<3,\"通常工事\",\"簡易型ICT活用工事\"))","v":"ICT活用工事"},null,"①３次元起工測量",null,"・空中写真測量（無人航空機）を用いた起工測量\n・地上型レーザースキャナーを用いた起工測量\n・無人航空機搭載型レーザースキャナーを用いた起工測量\n・地上移動体搭載型レーザースキャナーを用いた起工測量\n・TS等光波方式を用いた起工測量\n・TS（ノンプリズム方式）を用いた起工測量\n・ＲＴＫ－ＧＮＳＳを用いた起工測量\n・その他の３次元計測技術を用いた起工測量\n\n※採用する具体の技術等は別途協議により決定する。\n※複数以上の技術を組み合わせて採用してもよい。",null,null,null,null,true]
[null,"必須","②３次元設計データ作成",null,"※３次元出来形管理に用いる３次元設計データの作成を実施しなければならない。",null,null,null,null,true]
[null,"該当なし"]
[]
[]
[]
[]
[null,"必須","④３次元出来形管理等の施工管理",null,"・空中写真測量（無人航空機）を用いた出来形管理\n・地上型レーザースキャナーを用いた出来形管理\n・無人航空機搭載型レーザースキャナーを用いた出来形管理\n・地上移動体搭載型レーザースキャナーを用いた出来形管理\n・TS等光波方式を用いた出来形管理\n・TS（ノンプリズム方式）を用いた出来形管理\n・ＲＴＫ－ＧＮＳＳを用いた出来形管理\n・その他の３次元計測技術を用いた出来形管理\n\n※採用する具体の技術等は別途協議により決定する。\n※複数以上の技術を組み合わせて採用しても良い。\n※「①３次元起工測量」で採用した技術と相違しても良い。",null,null,null,null,true]
[null,"必須","⑤３次元データの納品",null,null,null,null,null,null,true]
[null,null,null,null,null,null,null,null,null,{"$f":"COUNTIF(J12:J20,TRUE)","v":4}]
["注) ＩＣＴ活用工事の詳細については，ＩＣＴ活用工事実施要領及びＩＣＴ活用工事共通仕様書によるものとする。"]

{"sheet":"地盤改良工","index":8,"n_rows":22,"n_cols":10,"rows_kept":22,"cut":false,"hidden":false,"merged":[[13,9,17,9],[25,0,25,7],[19,2,19,3],[19,4,19,7],[21,0,21,7],[22,0,22,7],[23,0,23,7],[24,0,24,7],[18,2,18,3],[18,4,18,7],[11,0,19,0],[11,2,11,3],[11,4,11,7],[12,2,12,3],[12,4,12,7],[13,1,17,1],[13,2,17,2],[13,3,17,3],[13,4,17,7],[4,6,4,7],[6,0,8,7],[9,1,9,7],[10,2,10,3],[10,4,10,7]]}
[]
[]
["ＩＣＴ活用工事計画書【地盤改良工】"]
[]
[null,null,null,null,null,"会社名："]
[]
["　当該工事の地盤改良工において、ＩＣＴ施工技術を次の施工プロセスの段階で活用します（□チェック欄に☑と記入しているものが該当）。"]
[]
[]
["工事名"]
["ICT活用工事の判定","チェック欄","施工プロセスの段階",null,"適用技術・機種"]
[{"$f":"IF(J21=5,\"ICT活用工事\",IF(J21<4,\"通常工事\",\"簡易型ICT活用工事\"))","v":"ICT活用工事"},null,"①３次元起工測量",null,"・空中写真測量（無人航空機）を用いた起工測量\n・地上型レーザースキャナーを用いた起工測量\n・無人航空機搭載型レーザースキャナーを用いた起工測量\n・地上移動体搭載型レーザースキャナーを用いた起工測量\n・TS等光波方式を用いた起工測量\n・TS（ノンプリズム方式）を用いた起工測量\n・ＲＴＫ－ＧＮＳＳを用いた起工測量\n・その他の３次元計測技術を用いた起工測量\n\n※採用する具体の技術等は別途協議により決定する。\n※複数以上の技術を組み合わせて採用してもよい。",null,null,null,null,true]
[null,"必須","②３次元設計データ作成",null,"※３次元出来形管理に用いる３次元設計データの作成を実施しなければならない。",null,null,null,null,true]
[null,"必須","③ＩＣＴ建設機械による施工","【種別】\n・路床安定処理工\n・表層安定処理工\n・固結工","・３次元マシンコントロール機能を持つ地盤改良機\n・３次元マシンコントロール建設機械\n・３次元マシンガイダンス建設機械\n\n※採用する機種及び活用工種・施工範囲等については、別途協議により決定する。\n※当該工事に含まれる左記作業のいずれかでＩＣＴ建設機械を活用すればよい。",null,null,null,null,true]
[]
[]
[]
[]
[null,"必須","④３次元出来形管理等の施工管理",null,"・施工履歴データを用いた出来形管理\n\n※採用する具体の技術等は別途協議により決定する。",null,null,null,null,true]
[null,"必須","⑤３次元データの納品",null,null,null,null,null,null,true]
[null,null,null,null,null,null,null,null,null,{"$f":"COUNTIF(J12:J20,TRUE)","v":5}]
["注) ＩＣＴ活用工事の詳細については、ＩＣＴ活用工事実施要領及びＩＣＴ活用工事共通仕様書によるものとする。"]

{"sheet":"舗装工（修繕工）","index":9,"n_rows":23,"n_cols":19,"rows_kept":23,"cut":false,"hidden":false,"merged":[[26,8,26,15],[14,18,18,18],[20,12,20,15],[22,8,22,15],[23,8,23,15],[24,8,24,15],[25,8,25,15],[14,17,18,17],[7,8,9,15],[10,9,10,15],[11,10,11,11],[11,12,11,15],[12,8,20,8],[12,10,12,11],[12,12,12,15],[13,10,13,11],[13,12,13,15],[14,9,18,9],[14,10,18,10],[14,11,18,11],[14,12,18,15],[19,10,19,11],[19,12,19,15],[20,10,20,11],[2,0,2,7],[3,0,3,7],[2,8,2,15],[3,8,3,15],[5,14,5,15],[5,6,5,7],[26,0,26,7],[20,2,20,3],[20,4,20,7],[22,0,22,7],[23,0,23,7],[24,0,24,7],[25,0,25,7],[7,0,9,7],[10,1,10,7],[11,2,11,3],[11,4,11,7],[19,2,19,3],[19,4,19,7],[12,0,20,0],[12,2,12,3],[12,4,12,7],[13,2,13,3],[13,4,13,7],[14,1,18,1],[14,2,18,2],[14,3,18,3],[14,4,18,7]]}
[]
[]
["ＩＣＴ活用工事計画書【舗装工（修繕工）】",null,null,null,null,null,null,null,"ＩＣＴ活用工事計画書【舗装工（修繕工）】"]
["※ＩＣＴ建設機械による３次元出来形管理を行う場合",null,null,null,null,null,null,null,"※通常建設機械による３次元出来形管理を行う場合"]
[]
[null,null,null,null,null,"会社名：",null,null,null,null,null,null,null,"会社名："]
[]
["　当該工事の舗装工（修繕工）において、ＩＣＴ施工技術を次の施工プロセスの段階で活用します（□チェック欄に☑と記入しているものが該当）。",null,null,null,null,null,null,null,"　当該工事の舗装工（修繕工）において、ＩＣＴ施工技術を次の施工プロセスの段階で活用します（□チェック欄に☑と記入しているものが該当）。"]
[]
[]
["工事名",null,null,null,null,null,null,null,"工事名"]
["ICT活用工事の判定","チェック欄","施工プロセスの段階",null,"適用技術・機種",null,null,null,"ICT活用工事の判定","チェック欄","施工プロセスの段階",null,"適用技術・機種"]
[{"$f":"IF(R22=5,\"ICT活用工事\",IF(R22<4,\"通常工事\",\"簡易型ICT活用工事\"))","v":"ICT活用工事"},null,"①３次元起工測量",null,"・地上型レーザースキャナーを用いた起工測量\n・地上移動体搭載型レーザースキャナーを用いた起工測量\n・TS（ノンプリズム方式）を用いた起工測量\n・その他の３次元計測技術による起工測量\n\n※採用する具体の技術等は別途協議により決定する。\n※複数以上の技術を組み合わせて採用してもよい。",null,null,null,{"$f":"IF(S22=5,\"ICT活用工事\",IF(S22<4,\"通常工事\",\"簡易型ICT活用工事\"))","v":"ICT活用工事"},null,"①３次元起工測量",null,"・地上型レーザースキャナーを用いた起工測量\n・地上移動体搭載型レーザースキャナーを用いた起工測量\n・TS（ノンプリズム方式）を用いた起工測量\n・その他の３次元計測技術による起工測量\n\n※採用する具体の技術等は別途協議により決定する。\n※複数以上の技術を組み合わせて採用してもよい。",null,null,null,null,true,true]
[null,"必須","②３次元設計データ作成",null,"ICT建設機械による３次元出来形管理を行う場合は、切削計画を作成しなければならない。\n",null,null,null,null,"必須","②３次元設計データ作成",null,"通常建設機械による３次元出来形管理を行う場合は、３次元設計データの作成を実施しなければならない。",null,null,null,null,true,true]
[null,"必須","③ＩＣＴ建設機械による施工（施工管理システム）","【種別】\n・切削オーバーレイ工\n・路面切削工","・施工管理システムを搭載した建設機械\n\n※採用する機種及び活用工種・施工範囲等については、別途協議により決定する。\n",null,null,null,null,"該当なし",null,null,null,null,null,null,null,true,true]
[]
[]
[]
[]
[null,"必須","④３次元出来形管理等の施工管理",null,"・施工履歴データを用いた出来形管理\n・地上写真測量を出来形管理\n\n※採用する具体の技術等は別途協議により決定する。",null,null,null,null,"必須","④３次元出来形管理等の施工管理",null,"・TS等光波方式を用いた出来形管理\n\n※採用する具体の技術等は別途協議により決定する。",null,null,null,null,true,true]
[null,"必須","⑤３次元データの納品",null,null,null,null,null,null,"必須","⑤３次元データの納品",null,null,null,null,null,null,true,true]
[null,null,null,null,null,null,null,null,null,null,null,null,null,null,null,null,null,{"$f":"COUNTIF(R13:R21,TRUE)","v":5},{"$f":"COUNTIF(S13:S21,TRUE)","v":5}]
["注) ＩＣＴ活用工事の詳細については、ＩＣＴ活用工事実施要領及びＩＣＴ活用工事共通仕様書によるものとする。",null,null,null,null,null,null,null,"注) ＩＣＴ活用工事の詳細については、ＩＣＴ活用工事実施要領及びＩＣＴ活用工事共通仕様書によるものとする。"]

{"sheet":"構造物工（橋梁上部）","index":10,"n_rows":22,"n_cols":10,"rows_kept":22,"cut":false,"hidden":false,"merged":[[13,9,17,9],[18,2,18,3],[18,4,18,7],[4,6,4,7],[6,0,8,7],[9,1,9,7],[10,2,10,3],[10,4,10,7],[25,0,25,7],[19,2,19,3],[19,4,19,7],[21,0,21,7],[22,0,22,7],[23,0,23,7],[24,0,24,7],[11,0,19,0],[11,2,11,3],[11,4,11,7],[12,2,12,3],[12,4,12,7],[13,1,17,1],[13,2,17,3],[13,4,17,7]]}
[]
[]
["ＩＣＴ活用工事計画書【構造物工（橋梁上部）】"]
[]
[null,null,null,null,null,"会社名："]
[]
["　当該工事の構造物工（橋梁上部）において、ＩＣＴ施工技術を次の施工プロセスの段階で活用します（□チェック欄に☑と記入しているものが該当）。"]
[]
[]
["工事名"]
["ICT活用工事の判定","チェック欄","施工プロセスの段階",null,"適用技術・機種"]
[{"$f":"IF(J21=4,\"ICT活用工事\",IF(J21<3,\"通常工事\",\"簡易型ICT活用工事\"))","v":"ICT活用工事"},null,"①３次元起工測量",null,"・空中写真測量（無人航空機）を用いた起工測量\n・地上型レーザースキャナーを用いた起工測量\n・無人航空機搭載型レーザースキャナーを用いた起工測量\n・地上移動体搭載型レーザースキャナーを用いた起工測量\n・TS等光波方式を用いた起工測量\n・TS（ノンプリズム方式）を用いた起工測量\n・ＲＴＫ－ＧＮＳＳを用いた起工測量\n・その他の３次元計測技術を用いた起工測量\n\n※採用する具体の技術等は別途協議により決定する。\n※複数以上の技術を組み合わせて採用してもよい。",null,null,null,null,true]
[null,"必須","②３次元設計データ作成",null,"※３次元出来形管理に用いる３次元設計データの作成を実施しなければならない。",null,null,null,null,true]
[null,"該当なし"]
[]
[]
[]
[]
[null,"必須","④３次元出来形管理等の施工管理",null,"・空中写真測量（無人航空機）を用いた出来形管理\n・地上型レーザースキャナーを用いた出来形管理\n・無人航空機搭載型レーザースキャナーを用いた出来形管理\n・TS等光波方式を用いた出来形管理\n\n※採用する具体の技術等は別途協議により決定する。\n※複数以上の技術を組み合わせて採用しても良い。\n※「①３次元起工測量」で採用した技術と相違しても良い。",null,null,null,null,true]
[null,"必須","⑤３次元データの納品",null,null,null,null,null,null,true]
[null,null,null,null,null,null,null,null,null,{"$f":"COUNTIF(J12:J20,TRUE)","v":4}]
["注) ＩＣＴ活用工事の詳細については、ＩＣＴ活用工事実施要領及びＩＣＴ活用工事共通仕様書によるものとする。"]

{"sheet":"構造物工（橋脚・橋台）","index":11,"n_rows":22,"n_cols":10,"rows_kept":22,"cut":false,"hidden":false,"merged":[[25,0,25,7],[19,2,19,3],[19,4,19,7],[21,0,21,7],[22,0,22,7],[23,0,23,7],[24,0,24,7],[11,0,19,0],[11,2,11,3],[11,4,11,7],[12,2,12,3],[12,4,12,7],[13,1,17,1],[13,2,17,3],[13,4,17,7],[13,9,17,9],[18,2,18,3],[18,4,18,7],[4,6,4,7],[6,0,8,7],[9,1,9,7],[10,2,10,3],[10,4,10,7]]}
[]
[]
["ＩＣＴ活用工事計画書【構造物工（橋脚・橋台）】"]
[]
[null,null,null,null,null,"会社名："]
[]
["　当該工事の構造物工（橋脚・橋台）において，ＩＣＴ施工技術を次の施工プロセスの段階で活用します（□チェック欄に☑と記入しているものが該当）。"]
[]
[]
["工事名"]
["ICT活用工事の判定","チェック欄","施工プロセスの段階",null,"適用技術・機種"]
[{"$f":"IF(J21=4,\"ICT活用工事\",IF(J21<3,\"通常工事\",\"簡易型ICT活用工事\"))","v":"ICT活用工事"},null,"①３次元起工測量",null,"・空中写真測量（無人航空機）を用いた起工測量\n・地上型レーザースキャナーを用いた起工測量\n・無人航空機搭載型レーザースキャナーを用いた起工測量\n・地上移動体搭載型レーザースキャナーを用いた起工測量\n・TS等光波方式を用いた起工測量\n・TS（ノンプリズム方式）を用いた起工測量\n・ＲＴＫ－ＧＮＳＳを用いた起工測量\n・その他の３次元計測技術を用いた起工測量\n\n※採用する具体の技術等は別途協議により決定する。\n※複数以上の技術を組み合わせて採用してもよい。",null,null,null,null,true]
[null,"必須","②３次元設計データ作成",null,"※３次元出来形管理に用いる３次元設計データの作成を実施しなければならない。",null,null,null,null,true]
[null,"該当なし"]
[]
[]
[]
[]
[null,"必須","④３次元出来形管理等の施工管理",null,"・空中写真測量（無人航空機）を用いた出来形管理\n・地上型レーザースキャナーを用いた出来形管理\n・無人航空機搭載型レーザースキャナーを用いた出来形管理\n・TS等光波方式を用いた出来形管理\n\n※採用する具体の技術等は別途協議により決定する。\n※複数以上の技術を組み合わせて採用しても良い。\n※「①３次元起工測量」で採用した技術と相違しても良い。",null,null,null,null,true]
[null,"必須","⑤３次元データの納品",null,null,null,null,null,null,true]
[null,null,null,null,null,null,null,null,null,{"$f":"COUNTIF(J12:J20,TRUE)","v":4}]
["注) ＩＣＴ活用工事の詳細については，ＩＣＴ活用工事実施要領及びＩＣＴ活用工事共通仕様書によるものとする。"]

{"sheet":"擁壁工","index":12,"n_rows":22,"n_cols":10,"rows_kept":22,"cut":false,"hidden":false,"merged":[[13,9,17,9],[18,2,18,3],[18,4,18,7],[4,6,4,7],[6,0,8,7],[9,1,9,7],[10,2,10,3],[10,4,10,7],[25,0,25,7],[19,2,19,3],[19,4,19,7],[21,0,21,7],[22,0,22,7],[23,0,23,7],[24,0,24,7],[11,0,19,0],[11,2,11,3],[11,4,11,7],[12,2,12,3],[12,4,12,7],[13,1,17,1],[13,2,17,3],[13,4,17,7]]}
[]
[]
["ＩＣＴ活用工事計画書【擁壁工】"]
[]
[null,null,null,null,null,"会社名："]
[]
["　当該工事の擁壁工において、ＩＣＴ施工技術を次の施工プロセスの段階で活用します（□チェック欄に☑と記入しているものが該当）。"]
[]
[]
["工事名"]
["ICT活用工事の判定","チェック欄","施工プロセスの段階",null,"適用技術・機種"]
[{"$f":"IF(J21=4,\"ICT活用工事\",IF(J21<3,\"通常工事\",\"簡易型ICT活用工事\"))","v":"ICT活用工事"},null,"①３次元起工測量",null,"・空中写真測量（無人航空機）を用いた起工測量\n・地上型レーザースキャナーを用いた起工測量\n・無人航空機搭載型レーザースキャナーを用いた起工測量\n・地上移動体搭載型レーザースキャナーを用いた起工測量\n・TS等光波方式を用いた起工測量\n・TS（ノンプリズム方式）を用いた起工測量\n・ＲＴＫ－ＧＮＳＳを用いた起工測量\n・その他の３次元計測技術を用いた起工測量\n\n※採用する具体の技術等は別途協議により決定する。\n※複数以上の技術を組み合わせて採用してもよい。",null,null,null,null,true]
[null,"必須","②３次元設計データ作成",null,"※３次元出来形管理に用いる３次元設計データの作成を実施しなければならない。",null,null,null,null,true]
[null,"該当なし"]
[]
[]
[]
[]
[null,"必須","④３次元出来形管理等の施工管理",null,"・空中写真測量（無人航空機）を用いた出来形管理\n・地上型レーザースキャナーを用いた出来形管理\n・無人航空機搭載型レーザースキャナーを用いた出来形管理\n・地上移動体搭載型レーザースキャナーを用いた出来形管理\n・TS等光波方式を用いた出来形管理\n・TS（ノンプリズム方式）を用いた出来形管理\n・ＲＴＫ－ＧＮＳＳを用いた出来形管理\n・その他の３次元計測技術を用いた出来形管理\n\n※採用する具体の技術等は別途協議により決定する。\n※複数以上の技術を組み合わせて採用しても良い。\n※「①３次元起工測量」で採用した技術と相違しても良い。",null,null,null,null,true]
[null,"必須","⑤３次元データの納品",null,null,null,null,null,null,true]
[null,null,null,null,null,null,null,null,null,{"$f":"COUNTIF(J12:J20,TRUE)","v":4}]
["注) ＩＣＴ活用工事の詳細については、ＩＣＴ活用工事実施要領及びＩＣＴ活用工事共通仕様書によるものとする。"]

{"sheet":"基礎工","index":13,"n_rows":22,"n_cols":10,"rows_kept":22,"cut":false,"hidden":false,"merged":[[13,9,17,9],[18,2,18,3],[18,4,18,7],[4,6,4,7],[6,0,8,7],[9,1,9,7],[10,2,10,3],[10,4,10,7],[25,0,25,7],[19,2,19,3],[19,4,19,7],[21,0,21,7],[22,0,22,7],[23,0,23,7],[24,0,24,7],[11,0,19,0],[11,2,11,3],[11,4,11,7],[12,2,12,3],[12,4,12,7],[13,1,17,1],[13,2,17,3],[13,4,17,7]]}
[]
[]
["ＩＣＴ活用工事計画書【基礎工】"]
[]
[null,null,null,null,null,"会社名："]
[]
["　当該工事の基礎工において，ＩＣＴ施工技術を次の施工プロセスの段階で活用します（□チェック欄に☑と記入しているものが該当）。"]
[]
[]
["工事名"]
["ICT活用工事の判定","チェック欄","施工プロセスの段階",null,"適用技術・機種"]
[{"$f":"IF(J21=4,\"ICT活用工事\",IF(J21<3,\"通常工事\",\"簡易型ICT活用工事\"))","v":"ICT活用工事"},null,"①３次元起工測量",null,"・空中写真測量（無人航空機）を用いた起工測量\n・地上型レーザースキャナーを用いた起工測量\n・無人航空機搭載型レーザースキャナーを用いた起工測量\n・地上移動体搭載型レーザースキャナーを用いた起工測量\n・TS等光波方式を用いた起工測量\n・TS（ノンプリズム方式）を用いた起工測量\n・ＲＴＫ－ＧＮＳＳを用いた起工測量\n・その他の３次元計測技術を用いた起工測量\n\n※採用する具体の技術等は別途協議により決定する。\n※複数以上の技術を組み合わせて採用してもよい。",null,null,null,null,true]
[null,"必須","②３次元設計データ作成",null,"※３次元出来形管理に用いる３次元設計データの作成を実施しなければならない。",null,null,null,null,true]
[null,"該当なし"]
[]
[]
[]
[]
[null,"必須","④３次元出来形管理等の施工管理",null,"・空中写真測量（無人航空機）を用いた出来形管理\n・地上型レーザースキャナーを用いた出来形管理\n・無人航空機搭載型レーザースキャナーを用いた出来形管理\n・地上移動体搭載型レーザースキャナーを用いた出来形管理\n・TS等光波方式を用いた出来形管理\n・TS（ノンプリズム方式）を用いた出来形管理\n・ＲＴＫ－ＧＮＳＳを用いた出来形管理\n・その他の３次元計測技術を用いた出来形管理\n\n※採用する具体の技術等は別途協議により決定する。\n※複数以上の技術を組み合わせて採用しても良い。\n※「①３次元起工測量」で採用した技術と相違しても良い。",null,null,null,null,true]
[null,"必須","⑤３次元データの納品",null,null,null,null,null,null,true]
[null,null,null,null,null,null,null,null,null,{"$f":"COUNTIF(J12:J20,TRUE)","v":4}]
["注) ＩＣＴ活用工事の詳細については，ＩＣＴ活用工事実施要領及びＩＣＴ活用工事共通仕様書によるものとする。"]

{"sheet":"港湾浚渫工 ","index":14,"n_rows":22,"n_cols":10,"rows_kept":22,"cut":false,"hidden":false,"merged":[[13,9,17,9],[18,2,18,3],[18,4,18,7],[4,6,4,7],[6,0,8,7],[9,1,9,7],[10,2,10,3],[10,4,10,7],[25,0,25,7],[19,2,19,3],[19,4,19,7],[21,0,21,7],[22,0,22,7],[23,0,23,7],[24,0,24,7],[11,0,19,0],[11,2,11,3],[11,4,11,7],[12,2,12,3],[12,4,12,7],[13,1,17,1],[13,2,17,3],[13,4,17,7]]}
[]
[]
["ＩＣＴ活用工事計画書【港湾浚渫工】"]
[]
[null,null,null,null,null,"会社名："]
[]
["　当該工事の港湾浚渫工工において，ＩＣＴ施工技術を次の施工プロセスの段階で活用します（□チェック欄に☑と記入しているものが該当）。"]
[]
[]
["工事名"]
["ICT活用工事の判定","チェック欄","施工プロセスの段階",null,"適用技術・機種"]
["ICT活用工事","必須","①３次元起工測量",null,"・マルチビームを用いた深浅測量\n\n",null,null,null,null,true]
[null,"必須","②３次元数量計算書",null,null,null,null,null,null,true]
[null,"必須","③ＩＣＴを活用した施工",null,"平面位置と目標浚渫位置・深度をリアルタイムで可視化する技術\n\n・グラブバケット\n・カッターヘッド\n・バックホウ バケット\n\n※採用する具体の技術は別途協議により決定する。",null,null,null,null,true]
[]
[]
[]
[]
[null,"必須","④３次元出来形管理",null,"・マルチビームを用いた深浅測量",null,null,null,null,true]
[null,"必須","⑤３次元データの納品",null,null,null,null,null,null,true]
[null,null,null,null,null,null,null,null,null,{"$f":"COUNTIF(J12:J20,TRUE)","v":5}]
["注) ＩＣＴ活用工事の詳細については，ＩＣＴ活用工事実施要領及びＩＣＴ活用工事共通仕様書によるものとする。"]

{"sheet":"通知用様式_受注者希望型 ","index":15,"n_rows":22,"n_cols":10,"rows_kept":22,"cut":false,"hidden":true,"merged":[[13,9,17,9],[25,0,25,7],[19,2,19,3],[19,4,19,7],[21,0,21,7],[22,0,22,7],[23,0,23,7],[24,0,24,7],[18,2,18,3],[18,4,18,7],[11,0,19,0],[11,2,11,3],[11,4,11,7],[12,2,12,3],[12,4,12,7],[13,1,17,1],[13,2,17,2],[13,3,17,3],[13,4,17,7],[4,6,4,7],[6,0,8,7],[9,1,9,7],[10,2,10,3],[10,4,10,7]]}
[]
[]
["ＩＣＴ活用工事計画書【土工】"]
[]
[null,null,null,null,null,"会社名："]
[]
["　当該工事の土工において、ＩＣＴ施工技術を次の施工プロセスの段階で活用します（□チェック欄に☑と記入しているものが該当）。"]
[]
[]
["工事名"]
["ICT活用工事の判定","チェック欄","施工プロセスの段階",null,"適用技術・機種"]
[null,null,"①３次元起工測量",null,"・空中写真測量（無人航空機）を用いた起工測量\n・地上型レーザースキャナーを用いた起工測量\n・トータルステーションを用いた起工測量\n・トータルステーション（ノンプリズム方式）を用いた起工測量\n・ＲＴＫ－ＧＮＳＳを用いた起工測量\n・無人航空機搭載型レーザースキャナーを用いた起工測量\n・地上移動体搭載型レーザースキャナーを用いた起工測量\n・その他の３次元計測技術による起工測量\n\n※採用する具体の技術は別途協議により決定する。\n※複数以上の技術を組み合わせて採用してもよい。",null,null,null,null,false]
[null,null,"②３次元設計データ作成",null,"※３次元出来形管理に用いる３次元設計データの作成を実施しなければならない。",null,null,null,null,false]
[null,null,"③ＩＣＴ建設機械による施工","【工種】\n・掘削工\n・盛土工\n・路体盛土工\n・路庄盛土工\n・法面整形工","・３次元マシンコントロール建設機械\n・３次元マシンガイダンス建設機械\n\n※採用する機種及び活用工種・施工範囲については、別途協議により決定する。\n※当該工事に含まれる左記作業のいずれかでＩＣＴ建設機械を活用すればよい。",null,null,null,null,false]
[]
[]
[]
[]
[null,null,"④３次元出来形管理等の施工管理",null,"・空中写真測量（無人航空機）を用いた起工測量\n・地上型レーザースキャナーを用いた起工測量\n・トータルステーションを用いた起工測量\n・トータルステーション（ノンプリズム方式）を用いた起工測量\n・ＲＴＫ－ＧＮＳＳを用いた起工測量\n・無人航空機搭載型レーザースキャナーを用いた起工測量\n・地上移動体搭載型レーザースキャナーを用いた起工測量\n・施工履歴データを用いた出来形管理\n・その他の３次元計測技術による出来形管理\n\n※採用する具体の技術は別途協議により決定する。\n※複数以上の技術を組み合わせて採用しても良い。\n※「①３次元起工測量」で採用した技術と相違しても良い。",null,null,null,null,false]
[null,null,"⑤３次元データの納品",null,null,null,null,null,null,false]
[null,null,null,null,null,null,null,null,null,{"$f":"COUNTIF(J12:J20,TRUE)","v":0}]
["注1) ＩＣＴ活用工事の詳細については、特記仕様書によるものとする。"]